[Event "DFMMLV 2024"]
[Site "Braunfels"]
[Date "2024.05.31"]
[Round "3.11"]
[White "Reinecke, Katharina"]
[Black "Trunz, Michelle"]
[Result "1-0"]
[ECO "B52"]
[WhiteElo "1949"]
[BlackElo "2048"]
[Annotator "NA RC"]
[PlyCount "121"]
[EventDate "2024.05.30"]
[EventType "team-tourn"]
[EventCountry "GER"]
[SourceTitle "playchess.com"]
[Source "ChessBase"]
[SourceQuality "1"]
[TimeControl "40/5400+30:1800+30"]

1. e4 {[%emt 0:00:01]} c5 {[%emt 0:00:04]} 2. Nf3 {[%emt 0:00:07]} d6 {[%emt 0:00:04]} 3. Bb5+ {[%emt 0:00:12]} Bd7 {[%emt 0:00:16]} 4. Bxd7+ {[%emt 0:00:47]} Qxd7 {[%emt 0:00:02]} 5. O-O {[%emt 0:02:24]} Nc6 {[%emt 0:01:55]} 6. c3 {[%emt 0:00:55]} Nf6 {[%emt 0:00:53]} 7. Re1 {[%emt 0:01:26]} e5 {[%emt 0:04:43]} 8. d4 {[%emt 0:02:35]} g6 {[%emt 0:01:49]} 9. Bg5 {[%emt 0:05:03]} Bg7 {[%emt 0:01:27]} 10. d5 {[%emt 0:07:59]} Ne7 {[%emt 0:00:35]} 11. b4 {[%emt 0:01:23]} cxb4 {[%emt 0:02:14]} 12. cxb4 {[%emt 0:00:35]} Rc8 {[%emt 0:01:00]} 13. Nbd2 {[%emt 0:03:51]} h6 {[%emt 0:01:26]} 14. Bxf6 {[%emt 0:07:27]} Bxf6 {[%emt 0:00:20]} 15. Rc1 {[%emt 0:04:10]} O-O {[%emt 0:00:30]} 16. Qb3 {[%emt 0:03:17]} g5 {[%emt 0:03:27]} 17. h3 {[%emt 0:03:49]} Ng6 {[%emt 0:01:32]} 18. Qe3 {[%emt 0:03:24]} Nf4 {[%emt 0:01:52]} 19. Nf1 {[%emt 0:05:17]} g4 {[%emt 0:04:47]} 20. hxg4 {[%emt 0:05:30]} Qxg4 {[%emt 0:00:18]} 21. Ng3 {[%emt 0:01:47]} h5 {[%emt 0:03:17]} 22. Nh2 {[%emt 0:03:57]} Qg5 {[%emt 0:03:42]} 23. Rxc8 {[%emt 0:05:22]} Rxc8 {[%emt 0:00:34]} 24. Qf3 {[%emt 0:01:16]} Rc2 {[%emt 0:05:59]} 25. Nf5 {[%emt 0:04:22]} Bd8 {[%emt 0:03:02]} 26. Nf1 {[%emt 0:02:33]} Bb6 {[%emt 0:02:06]} 27. N1e3 {[%emt 0:02:38]} Rxa2 {[%emt 0:02:56]} 28. Kh2 {[%emt 0:12:14]} Nd3 {[%emt 0:03:54]} 29. Rf1 {[%emt 0:02:19]} Qf4+ {[%emt 0:03:00]} 30. Qg3+ {[%emt 0:05:26]} Kf8 {[%emt 0:00:19]} 31. Kh3 {[%emt 0:01:51]} Qxg3+ {[%emt 0:00:43]} 32. Kxg3 {[%emt 0:00:45]} h4+ {[%emt 0:03:40]} 33. Nxh4 {[%emt 0:00:59]} Nxb4 {[%emt 0:03:01]} 34. Nhf5 {[%emt 0:00:12]} Bxe3 {[%emt 0:04:23]} 35. fxe3 {[%emt 0:00:21]} a5 {[%emt 0:13:05]} 36. Nxd6 {[%emt 0:00:15]} Ke7 {[%emt 0:00:36]} 37. Nxb7 {[%emt 0:00:25]} a4 {[%emt 0:02:20]} 38. d6+ {[%emt 0:00:29]} Ke6 {[%emt 0:00:50]} 39. Rd1 {[%emt 0:00:33]} Kd7 {[%emt 0:00:41]} 40. Nc5+ {[%emt 0:00:42]} Kd8 {[%emt 0:00:45]} 41. d7 {[%emt 0:06:23]} Nc6 {[%emt 0:00:49]} 42. Nb7+ {[%emt 0:00:36]} Kc7 {[%emt 0:00:43]} 43. d8=Q+ {[%emt 0:00:25]} Nxd8 {[%emt 0:00:04]} 44. Nxd8 {[%emt 0:00:05]} f6 {[%emt 0:01:22]} 45. Ne6+ {[%emt 0:06:52]} Kc6 {[%emt 0:00:44]} 46. Ng7 {[%emt 0:02:11]} Re2 {[%emt 0:03:10]} 47. Kf3 {[%emt 0:00:40]} Rb2 {[%emt 0:01:18]} 48. Nh5 {[%emt 0:02:02]} Rb7 {[%emt 0:02:55]} 49. g4 {[%emt 0:02:36]} Rf7 {[%emt 0:00:37]} 50. Ke2 {[%emt 0:04:46]} Kc5 {[%emt 0:01:25]} 51. Kd2 {[%emt 0:02:34]} Kc4 {[%emt 0:04:04]} 52. Kc2 {[%emt 0:00:45]} a3 {[%emt 0:02:44]} 53. Kb1 {[%emt 0:00:35]} a2+ {[%emt 0:11:44]} 54. Kxa2 {[%emt 0:01:46]} Kc3 {[%emt 0:00:20]} 55. Rd6 {[%emt 0:01:40]} Kc2 {[%emt 0:01:00]} 56. Ka3 {[%emt 0:00:26]} Kc3 {[%emt 0:00:32]} 57. Ka4 {[%emt 0:00:51]} Kc4 {[%emt 0:01:01]} 58. Ka5 {[%emt 0:00:53]} Kc5 {[%emt 0:00:40]} 59. Rxf6 {[%emt 0:01:39]} Ra7+ {[%emt 0:01:34]} 60. Ra6 {[%emt 0:00:06]} Rb7 {[%emt 0:00:59]} 61. Nf6 {[%emt 0:03:08]} 1-0

[Event "DFMMLV 2024"]
[Site "Braunfels"]
[Date "2024.05.31"]
[Round "3.12"]
[White "Hess, Olena"]
[Black "Frank, Michelle Viviane"]
[Result "1-0"]
[ECO "E91"]
[WhiteElo "2041"]
[BlackElo "1899"]
[Annotator "NA RC"]
[PlyCount "111"]
[EventDate "2024.05.30"]
[EventType "team-tourn"]
[EventCountry "GER"]
[SourceTitle "playchess.com"]
[Source "ChessBase"]
[SourceQuality "1"]
[TimeControl "40/5400+30:1800+30"]

1. Nf3 {[%emt 0:00:03]} Nf6 {[%emt 0:00:33]} 2. c4 {[%emt 0:00:10]} g6 {[%emt 0:00:07]} 3. Nc3 {[%emt 0:00:19]} Bg7 {[%emt 0:00:09]} 4. e4 {[%emt 0:00:05]} d6 {[%emt 0:00:03]} 5. d4 {[%emt 0:00:08]} O-O {[%emt 0:00:06]} 6. Be2 {[%emt 0:00:31]} Bg4 {[%emt 0:05:15]} 7. Be3 {[%emt 0:02:59]} Nfd7 {[%emt 0:06:11]} 8. Qd2 {[%emt 0:08:36]} c6 {[%emt 0:07:23]} 9. O-O {[%emt 0:01:55]} a5 {[%emt 0:03:14]} 10. d5 {[%emt 0:05:15]} Na6 {[%emt 0:07:41]} 11. Nd4 {[%emt 0:11:25]} Bxe2 {[%emt 0:00:59]} 12. Qxe2 {[%emt 0:00:08]} Bxd4 {[%emt 0:06:53]} 13. Bxd4 {[%emt 0:00:04]} Nac5 {[%emt 0:02:00]} 14. f4 {[%emt 0:05:02]} e5 {[%emt 0:00:32]} 15. fxe5 {[%emt 0:07:10]} Nxe5 {[%emt 0:00:56]} 16. Bxe5 {[%emt 0:02:36]} dxe5 {[%emt 0:00:05]} 17. Kh1 {[%emt 0:00:42]} Qe7 {[%emt 0:04:03]} 18. Rae1 {[%emt 0:07:32]} Rae8 {[%emt 0:00:28]} 19. Qc2 {[%emt 0:03:47]} Qg5 {[%emt 0:03:06]} 20. Rf3 {[%emt 0:02:32]} f5 {[%emt 0:00:21]} 21. Rg3 {[%emt 0:10:25]} Qf6 {[%emt 0:00:25]} 22. exf5 {[%emt 0:00:32]} Qxf5 {[%emt 0:00:07]} 23. Qxf5 {[%emt 0:00:41]} Rxf5 {[%emt 0:00:06]} 24. Kg1 {[%emt 0:02:18]} Ref8 {[%emt 0:03:02]} 25. Rge3 {[%emt 0:03:40]} Re8 {[%emt 0:06:37]} 26. Ne4 {[%emt 0:04:03]} Nxe4 {[%emt 0:00:15]} 27. Rxe4 {[%emt 0:00:02]} cxd5 {[%emt 0:00:19]} 28. cxd5 {[%emt 0:00:02]} Kf7 {[%emt 0:05:22]} 29. Rc1 {[%emt 0:02:49]} Ke7 {[%emt 0:01:13]} 30. g4 {[%emt 0:02:25]} Rf4 {[%emt 0:00:05]} 31. Rxe5+ {[%emt 0:00:42]} Kf8 {[%emt 0:00:04]} 32. Rxe8+ {[%emt 0:00:59]} Kxe8 {[%emt 0:00:05]} 33. h3 {[%emt 0:08:27]} Kd7 {[%emt 0:00:19]} 34. Rc5 {[%emt 0:02:03]} b6 {[%emt 0:00:11]} 35. Rc6 {[%emt 0:03:57]} Rb4 {[%emt 0:00:09]} 36. b3 {[%emt 0:00:05]} a4 {[%emt 0:00:58]} 37. Rc4 {[%emt 0:01:05]} Rb5 {[%emt 0:00:28]} 38. Rxa4 {[%emt 0:00:28]} Rxd5 {[%emt 0:00:15]} 39. Kf2 {[%emt 0:00:38]} h5 {[%emt 0:01:01]} 40. Ke3 {[%emt 0:00:45]} hxg4 {[%emt 0:00:36]} 41. hxg4 {[%emt 0:30:02]} Ke6 {[%emt 0:32:08]} 42. Rb4 {[%emt 0:01:28]} Rd6 {[%emt 0:00:09]} 43. Rb5 {[%emt 0:02:17]} Kf6 {[%emt 0:00:20]} 44. Ke4 {[%emt 0:00:00]} Ke6 {[%emt 0:00:00]} 45. Re5+ {[%emt 0:00:00]} Kf6 {[%emt 0:00:00]} 46. g5+ {[%emt 0:00:00]} Kf7 {[%emt 0:00:00]} 47. Rb5 {[%emt 0:00:00]} Ke6 {[%emt 0:00:00]} 48. Re5+ {[%emt 0:00:00]} Kf7 {[%emt 0:00:00]} 49. Rd5 {[%emt 0:00:00]} Rc6 {[%emt 0:00:00]} 50. Ke5 {[%emt 0:00:00]} Re6+ {[%emt 0:00:00]} 51. Kd4 {[%emt 0:00:00]} Rc6 {[%emt 0:00:00]} 52. Re5 {[%emt 0:00:00]} Rc2 {[%emt 0:00:00]} 53. a4 {[%emt 0:00:00]} Rc1 {[%emt 0:00:00]} 54. Rb5 {[%emt 0:00:00]} Rc6 {[%emt 0:00:00]} 55. Kd5 {[%emt 0:00:00]} Re6 {[%emt 0:00:00]} 56. Rb4 {[%emt 0:00:00]} 1-0

[Event "DFMMLV 2024"]
[Site "Braunfels"]
[Date "2024.05.31"]
[Round "3.13"]
[White "Werner, Rosalie"]
[Black "Trunz, Elena"]
[Result "0-1"]
[ECO "B84"]
[WhiteElo "1937"]
[BlackElo "2107"]
[Annotator "RC"]
[PlyCount "114"]
[EventDate "2024.05.30"]
[EventType "team-tourn"]
[EventCountry "GER"]
[SourceTitle "playchess.com"]
[Source "ChessBase"]
[SourceQuality "1"]
[TimeControl "40/5400+30:1800+30"]

1. e4 {[%emt 0:00:02]} c5 {[%emt 0:00:09]} 2. Nf3 {[%emt 0:00:06]} d6 {[%emt 0:00:08]} 3. d4 {[%emt 0:00:05]} cxd4 {[%emt 0:00:05]} 4. Nxd4 {[%emt 0:00:04]} Nf6 {[%emt 0:00:06]} 5. Nc3 {[%emt 0:00:12]} a6 {[%emt 0:00:14]} 6. Be2 {[%emt 0:00:28]} e6 {[%emt 0:00:32]} 7. Be3 {[%emt 0:06:37]} Qc7 {[%emt 0:01:23]} 8. O-O {[%emt 0:01:05]} b5 {[%emt 0:02:26]} 9. a3 {[%emt 0:04:26]} Bb7 {[%emt 0:02:07]} 10. Bd3 {[%emt 0:05:31]} Nbd7 {[%emt 0:02:36]} 11. Qe2 {[%emt 0:14:35]} Be7 {[%emt 0:03:43]} 12. Rae1 {[%emt 0:04:45]} O-O {[%emt 0:08:31]} 13. Kh1 {[%emt 0:06:24]} Nc5 {[%emt 0:15:09]} 14. Bc1 {[%emt 0:03:23]} Nxd3 {[%emt 0:18:11]} 15. Qxd3 {[%emt 0:03:18]} Rac8 {[%emt 0:04:18]} 16. f4 {[%emt 0:14:10]} Qc4 {[%emt 0:03:59]} 17. Rf3 {[%emt 0:03:47]} Nd7 {[%emt 0:05:06]} 18. Nb3 {[%emt 0:06:49]} Qxd3 {[%emt 0:03:42]} 19. Rxd3 {[%emt 0:04:32]} Nb6 {[%emt 0:06:31]} 20. Nd2 {[%emt 0:04:10]} Rfd8 {[%emt 0:03:51]} 21. Nf3 {[%emt 0:01:38]} d5 {[%emt 0:04:41]} 22. exd5 {[%emt 0:15:23]} Nxd5 {[%emt 0:00:24]} 23. Nxd5 {[%emt 0:00:00]} Bxd5 {[%emt 0:00:49]} 24. c3 {[%emt 0:00:00]} Kf8 {[%emt 0:05:58]} 25. Red1 {[%emt 0:00:00]} Bxf3 {[%emt 0:01:21]} 26. Rxd8+ {[%emt 0:00:00]} Rxd8 {[%emt 0:00:29]} 27. Rxd8+ {[%emt 0:00:00]} Bxd8 {[%emt 0:00:03]} 28. gxf3 {[%emt 0:00:00]} Ke7 {[%emt 0:02:44]} 29. Be3 {[%emt 0:00:00]} Bc7 {[%emt 0:01:39]} 30. Kg2 {[%emt 0:00:00]} g6 {[%emt 0:00:42]} 31. Kg3 {[%emt 0:00:00]} Kf6 {[%emt 0:00:57]} 32. b3 {[%emt 0:00:34]} Kf5 {[%emt 0:00:28]} 33. h4 {[%emt 0:00:21]} e5 {[%emt 0:00:40]} 34. Bd2 {[%emt 0:02:33]} exf4+ {[%emt 0:00:12]} 35. Kg2 {[%emt 0:00:23]} h5 {[%emt 0:00:45]} 36. Kh3 {[%emt 0:00:46]} Bd6 {[%emt 0:00:33]} 37. Bc1 {[%emt 0:00:18]} Be7 {[%emt 0:00:33]} 38. c4 {[%emt 0:01:47]} bxc4 {[%emt 0:00:19]} 39. bxc4 {[%emt 0:00:10]} f6 {[%emt 0:00:36]} 40. Bb2 {[%emt 0:00:15]} Bc5 {[%emt 0:01:27]} 41. a4 {[%emt 0:31:10]} Bf2 {[%emt 0:05:10]} 42. Bc3 {[%emt 0:00:00]} g5 {[%emt 0:02:31]} 43. hxg5 {[%emt 0:00:00]} fxg5 {[%emt 0:00:06]} 44. Ba5 {[%emt 0:00:00]} Bd4 {[%emt 0:02:23]} 45. Bd8 {[%emt 0:00:00]} Bf6 {[%emt 0:01:04]} 46. Bb6 {[%emt 0:00:00]} g4+ {[%emt 0:09:02]} 47. Kg2 {[%emt 0:00:00]} Bc3 {[%emt 0:01:12]} 48. a5 {[%emt 0:00:00]} Bd2 {[%emt 0:01:55]} 49. c5 {[%emt 0:00:00]} Ke6 {[%emt 0:02:24]} 50. c6 {[%emt 0:00:00]} Kd6 {[%emt 0:01:17]} 51. c7 {[%emt 0:00:00]} Kd7 {[%emt 0:00:04]} 52. fxg4 {[%emt 0:00:00]} hxg4 {[%emt 0:00:38]} 53. Kf2 {[%emt 0:00:00]} Bc3 {[%emt 0:02:26]} 54. Ke2 {[%emt 0:00:00]} Be5 {[%emt 0:01:03]} 55. c8=Q+ {[%emt 0:00:00]} Kxc8 {[%emt 0:00:09]} 56. Bc5 {[%emt 0:00:00]} Kd7 {[%emt 0:00:32]} 57. Kd3 {[%emt 0:00:00]} Kc6 {[%emt 0:08:57]} 0-1

[Event "DFMMLV 2024"]
[Site "Braunfels"]
[Date "2024.05.31"]
[Round "3.14"]
[White "Freitag, Julia"]
[Black "Blaschke, Franziska"]
[Result "1-0"]
[ECO "A45"]
[WhiteElo "2084"]
[BlackElo "1915"]
[Annotator "NA RC"]
[PlyCount "67"]
[EventDate "2024.05.30"]
[EventType "team-tourn"]
[EventCountry "GER"]
[SourceTitle "playchess.com"]
[Source "ChessBase"]
[SourceQuality "1"]
[TimeControl "40/5400+30:1800+30"]

1. d4 {[%emt 0:00:03]} Nf6 {[%emt 0:00:05]} 2. e3 {[%emt 0:00:10]} e6 {[%emt 0:00:27]} 3. f4 {[%emt 0:00:11]} c5 {[%emt 0:00:22]} 4. Nf3 {[%emt 0:00:08]} cxd4 {[%emt 0:00:14]} 5. exd4 {[%emt 0:00:08]} g6 {[%emt 0:00:27]} 6. Bd3 {[%emt 0:01:01]} Bg7 {[%emt 0:00:48]} 7. c3 {[%emt 0:00:21]} Nc6 {[%emt 0:00:26]} 8. O-O {[%emt 0:00:34]} O-O {[%emt 0:00:29]} 9. Qe1 {[%emt 0:02:34]} b6 {[%emt 0:01:56]} 10. Nbd2 {[%emt 0:00:45]} Bb7 {[%emt 0:02:42]} 11. Ng5 {[%emt 0:05:40]} Ne7 {[%emt 0:04:45]} 12. Qh4 {[%emt 0:08:47]} h6 {[%emt 0:21:22]} 13. Nge4 {[%emt 0:02:09]} Nxe4 {[%emt 0:03:25]} 14. Nxe4 {[%emt 0:00:12]} Nd5 {[%emt 0:02:16]} 15. Qh3 {[%emt 0:05:39]} f5 {[%emt 0:06:24]} 16. Nd6 {[%emt 0:01:32]} Rb8 {[%emt 0:03:12]} 17. Nxb7 {[%emt 0:01:42]} Rxb7 {[%emt 0:00:07]} 18. a4 {[%emt 0:01:16]} Qc7 {[%emt 0:04:27]} 19. Bd2 {[%emt 0:01:20]} Nf6 {[%emt 0:00:57]} 20. Qf3 {[%emt 0:01:36]} Rbb8 {[%emt 0:02:49]} 21. h3 {[%emt 0:00:53]} d5 {[%emt 0:03:40]} 22. g4 {[%emt 0:02:32]} Ne4 {[%emt 0:01:22]} 23. Bxe4 {[%emt 0:00:30]} dxe4 {[%emt 0:00:37]} 24. Qe2 {[%emt 0:01:00]} Rbc8 {[%emt 0:04:28]} 25. Kh1 {[%emt 0:07:09]} Kh7 {[%emt 0:02:47]} 26. Rg1 {[%emt 0:01:53]} Rg8 {[%emt 0:02:58]} 27. Rg2 {[%emt 0:03:16]} Bh8 {[%emt 0:06:39]} 28. Rag1 {[%emt 0:04:08]} Qc6 {[%emt 0:01:48]} 29. h4 {[%emt 0:07:31]} Qxa4 {[%emt 0:07:26]} 30. h5 {[%emt 0:00:36]} gxh5 {[%emt 0:00:16]} 31. gxf5 {[%emt 0:01:18]} exf5 {[%emt 0:01:08]} 32. Qxh5 {[%emt 0:00:51]} Qd7 {[%emt 0:01:17]} 33. Qxh6+ {[%emt 0:00:21]} Kxh6 {[%emt 0:00:09]} 34. Rh2# {[%emt 0:00:04]} 1-0

[Event "DFMMLV 2024"]
[Site "Braunfels"]
[Date "2024.05.31"]
[Round "3.17"]
[White "Rogozenco, Teodora"]
[Black "Sickmann, Lisa"]
[Result "0-1"]
[ECO "D60"]
[WhiteElo "1993"]
[BlackElo "1980"]
[Annotator "NA RC"]
[PlyCount "74"]
[EventDate "2024.05.30"]
[EventType "team-tourn"]
[EventCountry "GER"]
[SourceTitle "playchess.com"]
[Source "ChessBase"]
[SourceQuality "1"]
[TimeControl "40/5400+30:1800+30"]

1. d4 {[%emt 0:00:02]} d5 {[%emt 0:00:04]} 2. c4 {[%emt 0:00:11]} e6 {[%emt 0:00:05]} 3. Nf3 {[%emt 0:00:12]} Nf6 {[%emt 0:00:07]} 4. Bg5 {[%emt 0:00:09]} Be7 {[%emt 0:00:08]} 5. e3 {[%emt 0:00:07]} O-O {[%emt 0:00:14]} 6. Nc3 {[%emt 0:01:13]} Nbd7 {[%emt 0:00:24]} 7. Be2 {[%emt 0:07:28]} b6 {[%emt 0:03:17]} 8. cxd5 {[%emt 0:03:39]} exd5 {[%emt 0:01:37]} 9. O-O {[%emt 0:05:55]} Bb7 {[%emt 0:01:48]} 10. Bf4 {[%emt 0:14:54]} Ne4 {[%emt 0:12:40]} 11. Rc1 {[%emt 0:01:07]} Nxc3 {[%emt 0:10:11]} 12. Rxc3 {[%emt 0:00:49]} c5 {[%emt 0:00:07]} 13. b3 {[%emt 0:11:37]} Nf6 {[%emt 0:03:21]} 14. Rc2 {[%emt 0:05:29]} Ne4 {[%emt 0:01:28]} 15. Bb5 {[%emt 0:01:13]} a6 {[%emt 0:01:41]} 16. Bd3 {[%emt 0:00:05]} Re8 {[%emt 0:09:37]} 17. Qe2 {[%emt 0:01:36]} Bd6 {[%emt 0:05:15]} 18. Bxd6 {[%emt 0:01:05]} Qxd6 {[%emt 0:00:14]} 19. Rfc1 {[%emt 0:02:34]} g6 {[%emt 0:08:00]} 20. Qf1 {[%emt 0:00:51]} Qe7 {[%emt 0:04:23]} 21. h3 {[%emt 0:01:34]} Rec8 {[%emt 0:02:19]} 22. Qd1 {[%emt 0:01:43]} Rd8 {[%emt 0:05:08]} 23. Be2 {[%emt 0:00:28]} Rac8 {[%emt 0:01:01]} 24. Ne5 {[%emt 0:01:08]} Rc7 {[%emt 0:04:45]} 25. Qf1 {[%emt 0:08:42]} Ra8 {[%emt 0:00:54]} 26. Nd3 {[%emt 0:00:08]} Rac8 {[%emt 0:00:49]} 27. dxc5 {[%emt 0:06:02]} bxc5 {[%emt 0:00:53]} 28. Nf4 {[%emt 0:00:27]} Qd6 {[%emt 0:01:54]} 29. Rd1 {[%emt 0:01:02]} a5 {[%emt 0:02:50]} 30. Bc4 {[%emt 0:01:21]} d4 {[%emt 0:00:44]} 31. Ne2 {[%emt 0:00:23]} Qe5 {[%emt 0:07:56]} 32. exd4 {[%emt 0:03:41]} cxd4 {[%emt 0:00:09]} 33. Nxd4 {[%emt 0:01:16]} Nd6 {[%emt 0:07:34]} 34. Re2 {[%emt 0:07:08]} Qf6 {[%emt 0:01:42]} 35. Nb5 {[%emt 0:02:29]} Nxb5 {[%emt 0:00:25]} 36. Bxb5 {[%emt 0:00:04]} Qg5 {[%emt 0:00:17]} 37. Bc4 {[%emt 0:00:57]} Bf3 {[%emt 0:00:22]} 0-1

[Event "DFMMLV 2024"]
[Site "Braunfels"]
[Date "2024.05.31"]
[Round "3.19"]
[White "Meyer, Bettina"]
[Black "Braeutigam, Katerina"]
[Result "0-1"]
[ECO "E94"]
[WhiteElo "1981"]
[BlackElo "1988"]
[Annotator "RC"]
[PlyCount "78"]
[EventDate "2024.05.30"]
[EventType "team-tourn"]
[EventCountry "GER"]
[SourceTitle "playchess.com"]
[Source "ChessBase"]
[SourceQuality "1"]
[TimeControl "40/5400+30:1800+30"]

1. d4 {[%emt 0:00:04]} Nf6 {[%emt 0:00:06]} 2. c4 {[%emt 0:00:10]} g6 {[%emt 0:00:05]} 3. Nc3 {[%emt 0:00:07]} Bg7 {[%emt 0:00:06]} 4. e4 {[%emt 0:00:06]} d6 {[%emt 0:00:06]} 5. Nf3 {[%emt 0:00:06]} O-O {[%emt 0:00:08]} 6. Be2 {[%emt 0:00:05]} e5 {[%emt 0:00:20]} 7. Be3 {[%emt 0:04:20]} exd4 {[%emt 0:00:24]} 8. Nxd4 {[%emt 0:00:29]} Re8 {[%emt 0:01:06]} 9. f3 {[%emt 0:00:33]} Nc6 {[%emt 0:02:47]} 10. O-O {[%emt 0:04:46]} Nxd4 {[%emt 0:19:00]} 11. Bxd4 {[%emt 0:00:11]} c6 {[%emt 0:00:38]} 12. Qd2 {[%emt 0:02:31]} Qe7 {[%emt 0:25:27]} 13. Rad1 {[%emt 0:02:39]} Bf8 {[%emt 0:01:13]} 14. Rfe1 {[%emt 0:05:11]} b6 {[%emt 0:09:49]} 15. Bf1 {[%emt 0:04:25]} Bb7 {[%emt 0:06:45]} 16. Bf2 {[%emt 0:06:00]} Nh5 {[%emt 0:07:05]} 17. g4 {[%emt 0:08:42]} Ng7 {[%emt 0:00:13]} 18. Bg3 {[%emt 0:01:00]} Rad8 {[%emt 0:00:43]} 19. h4 {[%emt 0:05:08]} f6 {[%emt 0:06:15]} 20. Qh2 {[%emt 0:04:31]} h5 {[%emt 0:03:31]} 21. Bh3 {[%emt 0:04:22]} Qf7 {[%emt 0:12:21]} 22. Bxd6 {[%emt 0:05:32]} Qxc4 {[%emt 0:00:30]} 23. Bxf8 {[%emt 0:01:05]} Kxf8 {[%emt 0:01:08]} 24. Qc7 {[%emt 0:01:56]} Qc5+ {[%emt 0:00:47]} 25. Kg2 {[%emt 0:00:33]} Qe7 {[%emt 0:00:34]} 26. Qf4 {[%emt 0:01:59]} Ne6 {[%emt 0:01:23]} 27. Qh6+ {[%emt 0:00:37]} Qg7 {[%emt 0:00:08]} 28. Qc1 {[%emt 0:01:18]} Qc7 {[%emt 0:01:17]} 29. Ne2 {[%emt 0:01:30]} Ba6 {[%emt 0:00:28]} 30. Qh6+ {[%emt 0:03:27]} Qg7 {[%emt 0:00:17]} 31. Qe3 {[%emt 0:00:18]} Rxd1 {[%emt 0:00:41]} 32. Rxd1 {[%emt 0:01:57]} Bxe2 {[%emt 0:00:07]} 33. Rd2 {[%emt 0:00:06]} g5 {[%emt 0:00:55]} 34. Rxe2 {[%emt 0:11:45]} Nf4+ {[%emt 0:00:07]} 35. Kg3 {[%emt 0:00:06]} gxh4+ {[%emt 0:00:49]} 36. Kxh4 {[%emt 0:01:42]} Qg5+ {[%emt 0:00:38]} 37. Kg3 {[%emt 0:00:06]} h4+ {[%emt 0:00:21]} 38. Kh2 {[%emt 0:00:31]} Qe5 {[%emt 0:00:33]} 39. Qa3+ {[%emt 0:01:04]} c5 {[%emt 0:00:26]} 0-1